Body Name,Body,Supplier Name,Spending Service,Nature of Spend,Date Paid,Invoice Reference,Net Amount (excluding VAT)
Lancaster City Council,30UH,A & C Weber UK Ltd,Environmental Services,Equipment and Tools - General,04/09/2014,005752,13032.00
Lancaster City Council,30UH,A & C Weber UK Ltd,Environmental Services,Equipment and Tools - General,04/09/2014,005752,13032.00
Lancaster City Council,30UH,A & C Weber UK Ltd,Environmental Services,Equipment and Tools - General,12/09/2014,005763,5068.00
Lancaster City Council,30UH,A & C Weber UK Ltd,Environmental Services,Equipment and Tools - General,12/09/2014,005763,5068.00
Lancaster City Council,30UH,A. J. Hayton Welding & Fabrication Ltd,Environmental Services,Repair & Mtce Of Vehicles,23/09/2014,1797,725.00
Lancaster City Council,30UH,A1 Supaskips Ltd,Environmental Services,Materials - General,08/09/2014,14396,506.00
Lancaster City Council,30UH,A1 Supaskips Ltd,Environmental Services,Materials - General,24/09/2014,14448,541.20
Lancaster City Council,30UH,A1 Supaskips Ltd,Environmental Services,Services - Waste Disposal,03/09/2014,14325,1716.00
Lancaster City Council,30UH,A1 Supaskips Ltd,Environmental Services,Services - Waste Disposal,03/09/2014,59089,1700.86
Lancaster City Council,30UH,A1 Supaskips Ltd,Environmental Services,Services - Waste Disposal,03/09/2014,59834,3553.76
Lancaster City Council,30UH,A1 Supaskips Ltd,Environmental Services,Services - Waste Disposal,08/09/2014,59997,895.20
Lancaster City Council,30UH,A1 Supaskips Ltd,Environmental Services,Services - Waste Disposal,24/09/2014,59998,663.17
Lancaster City Council,30UH,A1 Supaskips Ltd,Environmental Services,Services - Waste Disposal,24/09/2014,60305,2069.32
Lancaster City Council,30UH,A1 Supaskips Ltd,Environmental Services,Services - Waste Disposal,30/09/2014,60469,873.65
Lancaster City Council,30UH,Abritas Ltd,Council Housing (HRA),Computer Equipt - Running,18/09/2014,4611,19745.00
Lancaster City Council,30UH,Airwave Solutions Ltd,Health & Housing,Equipment and Tools - General,26/09/2014,0900000205-035,2488.20
Lancaster City Council,30UH,Allied (Lancaster) Limited,Environmental Services,Recharge from Lancaster Marketgate,18/09/2014,912,2500.00
Lancaster City Council,30UH,Amazon.co.uk,Resources,Infrastructure - Update & Maintenance,16/09/2014,jpc000213,933.72
Lancaster City Council,30UH,Anchor Flooring Limited,Environmental Services,Capital Payments To Contractors,17/09/2014,AF/4213,1288.00
Lancaster City Council,30UH,Anchor Flooring Limited,Environmental Services,Capital Payments To Contractors,17/09/2014,AF/4307,1456.00
Lancaster City Council,30UH,Anchor Flooring Limited,Environmental Services,Capital Payments To Contractors,19/09/2014,AF/4424,1232.00
Lancaster City Council,30UH,Anchor Flooring Limited,Environmental Services,Other Construction Costs,15/09/2014,AF/4412,1344.00
Lancaster City Council,30UH,Anchor Flooring Limited,Environmental Services,Other Construction Costs,15/09/2014,AF/4413,539.00
Lancaster City Council,30UH,Apex Radio Systems Limited,Community Engagement,Equipment and Tools - General,16/09/2014,175092,702.00
Lancaster City Council,30UH,APSE,Environmental Services,Services - Consultants,04/09/2014,1415/734,650.00
Lancaster City Council,30UH,Aquarius Acoustics,Regeneration and Planning,Hire Of Equipment,17/09/2014,2k14-083,1500.00
Lancaster City Council,30UH,Arrow Chemicals Ltd,Environmental Services,White Lund Stock,08/09/2014,SI-142168,561.00
Lancaster City Council,30UH,Asbestos and Air Management Services Limited,Environmental Services,Contracted Services,19/09/2014,007967,1988.00
Lancaster City Council,30UH,Asbestos and Air Management Services Limited,Environmental Services,Void Maintenance - External,16/09/2014,007940,565.00
Lancaster City Council,30UH,Asbestos and Air Management Services Limited,Environmental Services,Void Maintenance - External,16/09/2014,007953,515.00
Lancaster City Council,30UH,Asbestos and Air Management Services Limited,Environmental Services,Void Maintenance - External,22/09/2014,007968,1484.00
Lancaster City Council,30UH,Asbestos and Air Management Services Limited,Environmental Services,Void Maintenance - External,22/09/2014,007975,994.00
Lancaster City Council,30UH,ATS Euromaster Ltd,Environmental Services,Repair & Mtce Of Vehicles,18/09/2014,A9980101331,672.71
Lancaster City Council,30UH,Bay Camera & Communications Ltd,Environmental Services,Contract Maintenance,17/09/2014,3026,1383.33
Lancaster City Council,30UH,Bay Camera & Communications Ltd,Environmental Services,Other Fixed Plant,17/09/2014,3006,2424.33
Lancaster City Council,30UH,Bay Camera & Communications Ltd,Environmental Services,Other Fixed Plant,17/09/2014,3006,808.11
Lancaster City Council,30UH,Bay Vets Ltd,Health & Housing,Services - Vets,18/09/2014,289372,562.39
Lancaster City Council,30UH,Bell Microsystems Ltd,Information Services,Services - Consultants,11/09/2014,SI112774,9100.00
Lancaster City Council,30UH,Bell Microsystems Ltd,Information Services,Services - Consultants,25/09/2014,PSCM100652,-680.00
Lancaster City Council,30UH,Bell Microsystems Ltd,Information Services,Services - Consultants,25/09/2014,SI112795,680.00
Lancaster City Council,30UH,Bell Microsystems Ltd,Information Services,Services - Consultants,25/09/2014,SI112909,680.00
Lancaster City Council,30UH,Bell Microsystems Ltd,Information Services,Services - Consultants,25/09/2014,SI112909,637.50
Lancaster City Council,30UH,Booker,Regeneration and Planning,Bar Supplies,04/09/2014,npc000336,757.28
Lancaster City Council,30UH,Booker,Environmental Services,Materials For Resale,18/09/2014,25529,823.53
Lancaster City Council,30UH,Bright-More Promotions Ltd,Regeneration and Planning,Venue - Premises Hire Costs,25/09/2014,101,1558.09
Lancaster City Council,30UH,British Gas Business,Community Engagement,Electricity,24/09/2014,68886786/1,962.40
Lancaster City Council,30UH,British Gas Business,Community Engagement,Electricity,24/09/2014,68893390/1,886.31
Lancaster City Council,30UH,British Gas Business,Community Engagement,Gas,04/09/2014,68821469/1,7993.13
Lancaster City Council,30UH,British Gas Business,Community Engagement,Gas,10/09/2014,68418160/1,-4002.59
Lancaster City Council,30UH,British Gas Business,Council Housing (HRA),Gas,25/09/2014,68983572/1,801.38
Lancaster City Council,30UH,British Gas Business,Council Housing (HRA),Gas,25/09/2014,68983573/1,699.08
Lancaster City Council,30UH,British Gas Business,Council Housing (HRA),Gas,25/09/2014,68983574/1,789.79
Lancaster City Council,30UH,British Gas Business,Council Housing (HRA),Gas,25/09/2014,68983575/1,888.60
Lancaster City Council,30UH,British Gas Business,Council Housing (HRA),Gas,25/09/2014,68983576/1,1311.84
Lancaster City Council,30UH,British Gas Business,Property Services,Gas,10/09/2014,68850455/1,622.01
Lancaster City Council,30UH,British Gas Business,Property Services,Electricity,30/09/2014,703768033,584.05
Lancaster City Council,30UH,British Gas Business,Property Services,Electricity,30/09/2014,703866828,-582.53
Lancaster City Council,30UH,Bullen Conservation Ltd,Environmental Services,Materials - General,17/09/2014,1543,1685.00
Lancaster City Council,30UH,Burnley Borough Council,Democratic Services,Printing & Stationery,08/09/2014,50209319,760.00
Lancaster City Council,30UH,Burrows (GM) Ltd,Environmental Services,Materials - General,15/09/2014,166998,634.29
Lancaster City Council,30UH,C & G Recycling,Property Services,Services - Trade Refuse,25/09/2014,309,2626.00
Lancaster City Council,30UH,C H Brownsord Ltd,Environmental Services,Contracted Services,01/09/2014,398,2460.25
Lancaster City Council,30UH,C H Brownsord Ltd,Environmental Services,Contracted Services,01/09/2014,399,2360.25
Lancaster City Council,30UH,C H Brownsord Ltd,Environmental Services,Contracted Services,01/09/2014,400,2430.76
Lancaster City Council,30UH,C H Brownsord Ltd,Environmental Services,Contracted Services,01/09/2014,402,927.60
Lancaster City Council,30UH,C H Brownsord Ltd,Environmental Services,Contracted Services,10/09/2014,410,695.00
Lancaster City Council,30UH,C H Brownsord Ltd,Environmental Services,Contracted Services,15/09/2014,413,2495.34
Lancaster City Council,30UH,C H Brownsord Ltd,Environmental Services,Contracted Services,16/09/2014,412,2450.00
Lancaster City Council,30UH,Cable&Wireless UK,Information Services,Data Line Rental,11/09/2014,UK10/092014/9224,1433.33
Lancaster City Council,30UH,Cable&Wireless UK,Information Services,Telephones,11/09/2014,13053979,2160.00
Lancaster City Council,30UH,Calico Enterprise Ltd t/a Furniture Matters,Environmental Services,Services - General,23/09/2014,839,11605.17
Lancaster City Council,30UH,Camfil Ltd,Community Engagement,Other Fixed Plant,26/09/2014,851133,1212.47
Lancaster City Council,30UH,Canal & River Trust,Property Services,Rent,09/09/2014,0000041474,900.00
Lancaster City Council,30UH,Carlisle Glass Limited,Environmental Services,Contracted Services,09/09/2014,M 697990,550.00
Lancaster City Council,30UH,Carlisle Glass Limited,Environmental Services,White Lund Stock,01/09/2014,M 698995,1310.00
Lancaster City Council,30UH,Carlisle Glass Limited,Environmental Services,White Lund Stock,29/09/2014,M 706193,897.75
Lancaster City Council,30UH,CBS Outdoor Limited,Democratic Services,Miscellaneous Advertising,09/09/2014,SINV00023720,5175.00
Lancaster City Council,30UH,Choice Caterers,Health & Housing,Service Training Budget,11/09/2014,01,500.00
Lancaster City Council,30UH,Christian Knowles Productions Ltd,Regeneration and Planning,Exhibitions & Events - Expenses,25/09/2014,HC00169,897.16
Lancaster City Council,30UH,Chubb Fire Limited,Property Services,R & M - Buildings,09/09/2014,4761441,574.53
Lancaster City Council,30UH,CIEH,Health & Housing,Service Training Budget,26/09/2014,spc000527,540.00
Lancaster City Council,30UH,CIEH,Health & Housing,Subscriptions,12/09/2014,spc000505,576.00
Lancaster City Council,30UH,Clapping Stage,Regeneration and Planning,Hire Of Equipment,18/09/2014,08/08/14,1000.00
Lancaster City Council,30UH,Cleanall Services Ltd.,Property Services,Other Cleaning,19/09/2014,23015,6176.55
Lancaster City Council,30UH,Construction Study Centre Ltd,Environmental Services,Service Training Budget,15/09/2014,311439,1270.00
Lancaster City Council,30UH,Construction Study Centre Ltd,Environmental Services,Service Training Budget,19/09/2014,311440,1190.00
Lancaster City Council,30UH,Construction Study Centre Ltd,Environmental Services,Service Training Budget,19/09/2014,311843,-1190.00
Lancaster City Council,30UH,Contact One Limited,Property Services,Fixtures & Fittings - General,09/09/2014,3172,14180.00
Lancaster City Council,30UH,Corona Energy,Community Engagement,Gas,24/09/2014,09559509,620.47
Lancaster City Council,30UH,Countrywide Environmental Services Ltd,Property Services,R & M - Buildings,16/09/2014,0011641,4884.00
Lancaster City Council,30UH,County Care Services Ltd T/A Carewatch,Council Housing (HRA),Contracted Services,11/09/2014,3221,700.00
Lancaster City Council,30UH,County Care Services Ltd T/A Carewatch,Council Housing (HRA),Contracted Services,11/09/2014,52432,1050.00
Lancaster City Council,30UH,County Oil Group Ltd,Environmental Services,VMU Stock,29/09/2014,644431,1398.64
Lancaster City Council,30UH,Craig Jury Plant & Groundworks Limited,Environmental Services,Materials - General,03/09/2014,00258,1625.20
Lancaster City Council,30UH,Craig Jury Plant & Groundworks Limited,Environmental Services,Materials - General,10/09/2014,00269,820.00
Lancaster City Council,30UH,Craig Jury Plant & Groundworks Limited,Regeneration and Planning,R & M - Sea & River / Promenade,16/09/2014,00295,864.00
Lancaster City Council,30UH,Crossling Ltd,Environmental Services,White Lund Stock,22/09/2014,1305413,1351.46
Lancaster City Council,30UH,Cumbria County Council,Regeneration and Planning,Morecambe Bay Strategy Partnership,10/09/2014,0251620,4000.00
Lancaster City Council,30UH,Cyclescheme Limited,Financial Services,Purchase of Cycles,25/09/2014,W248468,2323.26
Lancaster City Council,30UH,D Barf,Environmental Services,Capital Payments To Contractors,03/09/2014,2,1310.00
Lancaster City Council,30UH,D Barf,Environmental Services,Capital Payments To Contractors,03/09/2014,D/BARF 23,1800.00
Lancaster City Council,30UH,D Barf,Environmental Services,Capital Payments To Contractors,17/09/2014,3,1920.00
Lancaster City Council,30UH,D Barf,Environmental Services,Capital Payments To Contractors,18/09/2014,4,1300.00
Lancaster City Council,30UH,Dalecom Business Telephone Systems,Community Engagement,Telephones,17/09/2014,126004,720.00
Lancaster City Council,30UH,Danfo (UK) Limited,Environmental Services,Capital Payments To Contractors,15/09/2014,000002732,3911.00
Lancaster City Council,30UH,Danfo (UK) Limited,Environmental Services,General Fees & Charges,17/09/2014,0000000605,-11991.48
Lancaster City Council,30UH,Danfo (UK) Limited,Environmental Services,Services - General,17/09/2014,0000002664,14511.81
Lancaster City Council,30UH,Dave Wilson Developments,Health & Housing,Capital Grants,15/09/2014,spr000526,2495.00
Lancaster City Council,30UH,Dave Wilson Developments,Health & Housing,Capital Grants,17/09/2014,spr000527,2970.00
Lancaster City Council,30UH,Dave Wilson Developments,Health & Housing,Capital Grants,17/09/2014,spr000528,2556.00
Lancaster City Council,30UH,Dave Wilson Developments,Health & Housing,Capital Grants,24/09/2014,spr000534,2995.00
Lancaster City Council,30UH,Dave Wilson Developments,Health & Housing,Capital Grants,24/09/2014,spr000537,2995.00
Lancaster City Council,30UH,Dave Wilson Developments,Health & Housing,Capital Grants,30/09/2014,spr000546,2795.00
Lancaster City Council,30UH,David Willan,Environmental Services,Materials For Resale,16/09/2014,25463,618.15
Lancaster City Council,30UH,Deco Publique,Regeneration and Planning,Services - General,03/09/2014,24,3500.00
Lancaster City Council,30UH,Dennis Barnfield Ltd,Environmental Services,Equipment and Tools - General,18/09/2014,25514,735.99
Lancaster City Council,30UH,Dickinson & Whitaker Limited,Health & Housing,Capital Grants,17/09/2014,spr000529,2390.00
Lancaster City Council,30UH,Dickinson & Whitaker Limited,Health & Housing,Capital Grants,18/09/2014,spr000530,2850.00
Lancaster City Council,30UH,Dispo International,Regeneration and Planning,Bar Supplies,04/09/2014,2142560,661.24
Lancaster City Council,30UH,Dyno Start Carnforth,Health & Housing,Equipment and Tools - General,22/09/2014,bpc001748,750.00
Lancaster City Council,30UH,E.ON,Environmental Services,Electricity,08/09/2014,H1070F81F2,1450.47
Lancaster City Council,30UH,E.ON,Regeneration and Planning,Misc. Energy Charges,03/09/2014,0116 3158 9450,677.54
Lancaster City Council,30UH,E.ON,Environmental Services,Electricity,10/09/2014,H1072188EO,582.59
Lancaster City Council,30UH,Ebuyer (UK) Limited,Resources,Infrastructure - Update & Maintenance,16/09/2014,jpc000214,1385.21
Lancaster City Council,30UH,Ebuyer (UK) Limited,Resources,Infrastructure - Update & Maintenance,24/09/2014,jpc000215,2513.22
Lancaster City Council,30UH,Edmundson Electrical Ltd,Environmental Services,White Lund Stock,29/09/2014,130-093086,1098.00
Lancaster City Council,30UH,EMCOR Facilities Services Ltd,Environmental Services,Capital Payments To Contractors,17/09/2014,00340135 RI,67955.25
Lancaster City Council,30UH,EMCOR Facilities Services Ltd,Environmental Services,Gas Partnership Agreement,12/09/2014,00333692 RI,74624.16
Lancaster City Council,30UH,EMCOR Facilities Services Ltd,Environmental Services,Gas Partnership Agreement,12/09/2014,00339545 RI,43128.85
Lancaster City Council,30UH,EMCOR Facilities Services Ltd,Environmental Services,Gas Partnership Agreement,12/09/2014,00340084 RM,-74624.16
Lancaster City Council,30UH,EMCOR Facilities Services Ltd,Environmental Services,Gas Partnership Agreement,22/09/2014,00340136RI,43128.85
Lancaster City Council,30UH,EMCOR Facilities Services Ltd,Environmental Services,Gas Partnership Agreement,30/09/2014,00341685RI,43868.72
Lancaster City Council,30UH,English Landscapes Ltd t/a The Landscape Group,Regeneration and Planning,Capital Payments To Contractors,04/09/2014,0120,197480.30
Lancaster City Council,30UH,Enterprise Ltd,Financial Services,Debtors (Powersol) refunds,23/09/2014,LANC12 / EMS,1740.00
Lancaster City Council,30UH,Envirovent Ltd,Environmental Services,Contracted Services,09/09/2014,0000139888,569.00
Lancaster City Council,30UH,Express Windows (North West) Ltd.,Health & Housing,Capital Grants,11/09/2014,Inv. 11790,2157.50
Lancaster City Council,30UH,FGH Security Ltd,Community Engagement,Capital Payments To Contractors,02/09/2014,22471,840.00
Lancaster City Council,30UH,Fire Safety Solutions Ltd,Property Services,R & M - Buildings,23/09/2014,FSS-I195/46,4323.93
Lancaster City Council,30UH,Gap Group Ltd,Environmental Services,Rota Painting,03/09/2014,404671627,979.00
Lancaster City Council,30UH,Gelpack Excelsior Ltd,Environmental Services,White Lund Stock,22/09/2014,SINV-074027,6315.60
Lancaster City Council,30UH,Gelpack Excelsior Ltd,Environmental Services,White Lund Stock,22/09/2014,SINV-074028,4778.25
Lancaster City Council,30UH,Gelpack Excelsior Ltd,Environmental Services,White Lund Stock,22/09/2014,SINV-074077,4378.82
Lancaster City Council,30UH,George Speight and Son Ltd,Environmental Services,Materials For Resale,16/09/2014,25466,916.81
Lancaster City Council,30UH,Glasdon Manufacturing,Health & Housing,Equipment and Tools - General,12/09/2014,bpc001731,966.82
Lancaster City Council,30UH,Graeme Skelcher,Regeneration and Planning,Services - Consultants,10/09/2014,15/02,2250.00
Lancaster City Council,30UH,Greenham Trading Limited,Environmental Services,White Lund Stock,09/09/2014,11/242118,580.52
Lancaster City Council,30UH,Green-Tech Limited,Environmental Services,Materials - General,16/09/2014,108083,1650.25
Lancaster City Council,30UH,Greentraveller Limited,Regeneration and Planning,Services - Consultants,10/09/2014,GTCOM2234,1500.00
Lancaster City Council,30UH,Gullivers Truck Hire Ltd,Environmental Services,Materials - General,02/09/2014,1406/1666W,1092.87
Lancaster City Council,30UH,Gullivers Truck Hire Ltd,Environmental Services,Materials - General,02/09/2014,1408/44340,625.00
Lancaster City Council,30UH,Gullivers Truck Hire Ltd,Environmental Services,Materials - General,02/09/2014,1408/46119,625.00
Lancaster City Council,30UH,Gullivers Truck Hire Ltd,Environmental Services,Materials - General,04/09/2014,1408/48322,625.00
Lancaster City Council,30UH,Gullivers Truck Hire Ltd,Environmental Services,Materials - General,26/09/2014,1409/56111,625.00
Lancaster City Council,30UH,Gullivers Truck Hire Ltd,Environmental Services,Materials - General,26/09/2014,1409/58741,625.00
Lancaster City Council,30UH,Gullivers Truck Hire Ltd,Environmental Services,Materials - General,30/09/2014,1408/53325,625.00
Lancaster City Council,30UH,Halton Container Services Ltd,Environmental Services,Materials For Resale,05/09/2014,1433,1500.00
Lancaster City Council,30UH,Halton Container Services Ltd,Environmental Services,Materials For Resale,05/09/2014,1440,750.00
Lancaster City Council,30UH,HEM DES LLP,Regeneration and Planning,Services - General,18/09/2014,3331,5000.00
Lancaster City Council,30UH,Herbert T. Forrest Ltd,Environmental Services,Capital Payments To Contractors,05/09/2014,101701-5,7085.78
Lancaster City Council,30UH,Herbert T. Forrest Ltd,Environmental Services,Capital Payments To Contractors,05/09/2014,101741-2,25789.59
Lancaster City Council,30UH,Herbert T. Forrest Ltd,Environmental Services,Capital Payments To Contractors,12/09/2014,101744-2,33975.33
Lancaster City Council,30UH,Herbert T. Forrest Ltd,Environmental Services,Capital Payments To Contractors,15/09/2014,101744-2a,74939.52
Lancaster City Council,30UH,Herbert T. Forrest Ltd,Environmental Services,Capital Payments To Contractors,30/09/2014,101744-3,25405.54
Lancaster City Council,30UH,Herbert T. Forrest Ltd,Environmental Services,Capital Payments To Contractors,30/09/2014,101744-3a,19366.29
Lancaster City Council,30UH,Highwood Consultants Ltd,Environmental Services,Other Construction Costs,30/09/2014,20730,34888.43
Lancaster City Council,30UH,Hilary Smith t/a Ecology and Countryside,Regeneration and Planning,Services - Consultants,10/09/2014,05/2014,2745.00
Lancaster City Council,30UH,HMCS,Resources,Legal & Court Costs,08/09/2014,rpc000033,1383.00
Lancaster City Council,30UH,HMCS,Resources,Legal & Court Costs,01/09/2014,rpc000030,1548.00
Lancaster City Council,30UH,Honeywell Control Systems Ltd,Property Services,R & M - Buildings,24/09/2014,5200780431,2105.46
Lancaster City Council,30UH,Honeywell Control Systems Ltd,Property Services,R & M - Buildings,24/09/2014,5200839384,4199.14
Lancaster City Council,30UH,Honeywell Control Systems Ltd,Property Services,R & M - Buildings,24/09/2014,5200868524,-2105.46
Lancaster City Council,30UH,Honeywell Control Systems Ltd,Property Services,R & M - Buildings,24/09/2014,5200868548,-3452.56
Lancaster City Council,30UH,Honeywell Control Systems Ltd,Property Services,R & M - Buildings,24/09/2014,5200868549,-4199.14
Lancaster City Council,30UH,Horiba UK Limited,Health & Housing,R & M - Air Quality Monitoring Station,17/09/2014,90022091,7200.00
Lancaster City Council,30UH,Horton Automatics Limited,Property Services,R & M - Buildings,30/09/2014,4054569,805.10
Lancaster City Council,30UH,Howdens Joinery Co,Environmental Services,Materials - General,30/09/2014,E14/0007263,523.14
Lancaster City Council,30UH,Hygiene Cleaning Supplies Ltd,Environmental Services,White Lund Stock,03/09/2014,78376,739.35
Lancaster City Council,30UH,Hygiene Cleaning Supplies Ltd,Environmental Services,White Lund Stock,23/09/2014,79386,596.02
Lancaster City Council,30UH,Hygiene Cleaning Supplies Ltd,Environmental Services,White Lund Stock,29/09/2014,80110,838.48
Lancaster City Council,30UH,IDOX Software Limited,Democratic Services,Printing & Stationery,09/09/2014,7002202,757.61
Lancaster City Council,30UH,Improvement Development & Growth Ltd,Governance,Corporate Training Budget,03/09/2014,15765,4875.00
Lancaster City Council,30UH,Inform CPI Ltd,Revenue Services,Services - General,25/09/2014,AL46653,4650.00
Lancaster City Council,30UH,Instarmac Group PLC,Environmental Services,White Lund Stock,10/09/2014,461108,863.52
Lancaster City Council,30UH,Instarmac Group PLC,Environmental Services,White Lund Stock,24/09/2014,462493,1592.08
Lancaster City Council,30UH,ISOQAR Limited,Council Housing (HRA),ISO 9000 Accreditation,11/09/2014,3587,2145.00
Lancaster City Council,30UH,J & H M Dickson Ltd,Environmental Services,Equipment and Tools - General,03/09/2014,54539,2400.00
Lancaster City Council,30UH,J C Critchley Ltd,Environmental Services,Capital Payments To Contractors,03/09/2014,0912,7897.00
Lancaster City Council,30UH,J C Critchley Ltd,Environmental Services,Capital Payments To Contractors,15/09/2014,0914,2650.00
Lancaster City Council,30UH,J C Critchley Ltd,Environmental Services,Capital Payments To Contractors,18/09/2014,0915,5009.00
Lancaster City Council,30UH,J C Critchley Ltd,Environmental Services,Contracted Services,03/09/2014,0913,2750.00
Lancaster City Council,30UH,J. Atkinson and Co Ltd,Environmental Services,Materials For Resale,18/09/2014,25502,700.34
Lancaster City Council,30UH,Jewson Limited,Environmental Services,Other Construction Costs,17/09/2014,0333/0106814,593.95
Lancaster City Council,30UH,Jill Trafford (Instructor),Community Engagement,Services - General,04/09/2014,08/14,1185.00
Lancaster City Council,30UH,JM Pratt Ltd,Environmental Services,Materials For Resale,16/09/2014,25472,809.15
Lancaster City Council,30UH,John Cornthwaite,Environmental Services,Repair & Mtce Of Vehicles,18/09/2014,25520,693.66
Lancaster City Council,30UH,John Liscombe Ltd,Environmental Services,White Lund Stock,22/09/2014,50051701,2808.64
Lancaster City Council,30UH,Kalimba,Regeneration and Planning,Venue - Premises Hire Costs,25/09/2014,24-08-14,730.00
Lancaster City Council,30UH,Keepmoat Regeneration Ltd,Property Services,Capital Payments To Contractors,18/09/2014,CSCT000604-001,9922.96
Lancaster City Council,30UH,Keepmoat Regeneration Ltd,Property Services,Capital Payments To Contractors,29/09/2014,CSCT000575-002,10260.02
Lancaster City Council,30UH,Keepmoat Regeneration Ltd,Property Services,Capital Payments To Contractors,29/09/2014,CSCT000575-003,10939.96
Lancaster City Council,30UH,Keepmoat Regeneration Ltd,Property Services,Capital Payments To Contractors,29/09/2014,CSCT000604-002,28064.93
Lancaster City Council,30UH,Kelway Ltd,Information Services,Infrastructure - Update & Maintenance,02/09/2014,PSINV01220628,744.48
Lancaster City Council,30UH,Kelway Ltd,Information Services,Infrastructure - Update & Maintenance,25/09/2014,PSCN083477,-524.60
Lancaster City Council,30UH,Kelway Ltd,Information Services,Infrastructure - Update & Maintenance,25/09/2014,PSINV01223720,524.60
Lancaster City Council,30UH,Kelway Ltd,Information Services,Infrastructure - Update & Maintenance,25/09/2014,PSINV01232385,1749.00
Lancaster City Council,30UH,Kelway Ltd,Information Services,Infrastructure - Update & Maintenance,25/09/2014,PSINV01233309,3499.00
Lancaster City Council,30UH,Keycraft,Environmental Services,Materials For Resale,18/09/2014,25497,620.00
Lancaster City Council,30UH,Keycraft,Environmental Services,Materials For Resale,18/09/2014,25507,1094.00
Lancaster City Council,30UH,Keyline Builders Merchant Ltd,Environmental Services,White Lund Stock,24/09/2014,1316 AEA435,634.37
Lancaster City Council,30UH,Keyline Builders Merchant Ltd,Environmental Services,White Lund Stock,29/09/2014,1316 AEA516,665.65
Lancaster City Council,30UH,Killgerm Chemicals Ltd,Health & Housing,Equipment and Tools - General,05/09/2014,spc000487,1131.16
Lancaster City Council,30UH,Kykloud Limited,Environmental Services,Services - Medical Fees,04/09/2014,INV-0487,750.00
Lancaster City Council,30UH,L S Systems Ltd,Environmental Services,Materials - General,15/09/2014,138754,1984.50
Lancaster City Council,30UH,Lakemere Environmental Services Limited,Environmental Services,Services - Waste Disposal,03/09/2014,4292,2550.00
Lancaster City Council,30UH,Lancashire County Council,Governance,Land Charge Fees - L.C.C.,24/09/2014,5200069151,1710.00
Lancaster City Council,30UH,Lancashire County Council,Regeneration and Planning,Concerts - General,02/09/2014,npr000186,810.00
Lancaster City Council,30UH,Lancashire County Council,Health & Housing,Capital Grants,24/09/2014,spr000532,1869.00
Lancaster City Council,30UH,Lancashire County Council,Health & Housing,Capital Grants,24/09/2014,spr000533,542.00
Lancaster City Council,30UH,Lancashire County Council,Health & Housing,Capital Grants,24/09/2014,spr000535,592.00
Lancaster City Council,30UH,Lancashire County Council,Health & Housing,Capital Grants,24/09/2014,spr000536,9008.00
Lancaster City Council,30UH,Lancashire County Council,Health & Housing,Capital Grants,24/09/2014,spr000538,4832.00
Lancaster City Council,30UH,Lancashire County Council,Health & Housing,Capital Grants,29/09/2014,spr000542,1188.36
Lancaster City Council,30UH,Lancashire County Council,Health & Housing,Capital Grants,29/09/2014,spr000543,4337.00
Lancaster City Council,30UH,Lancashire County Council,Health & Housing,Capital Grants,29/09/2014,spr000544,4362.00
Lancaster City Council,30UH,Lancashire County Council,Health & Housing,Capital Grants,30/09/2014,spr000547,1415.96
Lancaster City Council,30UH,Lancashire County Council,Health & Housing,Capital Grants,30/09/2014,spr000548,2404.00
Lancaster City Council,30UH,Lancashire County Council,Health & Housing,Capital Grants,30/09/2014,spr000549,9445.00
Lancaster City Council,30UH,Lancashire County Council,Health & Housing,Capital Grants,30/09/2014,spr000551,1271.52
Lancaster City Council,30UH,Lancashire County Council,Health & Housing,Capital Grants,30/09/2014,spr000552,3248.00
Lancaster City Council,30UH,Lancashire County Council,Health & Housing,Capital Grants,30/09/2014,spr000553,3913.90
Lancaster City Council,30UH,Lancashire County Council,Property Services,Capital Payments To Contractors,29/09/2014,5200068983,3377.23
Lancaster City Council,30UH,Lancashire County Council,Property Services,R & M - Buildings,29/09/2014,5200068998,5482.15
Lancaster City Council,30UH,Lancashire County Council,Property Services,R & M - Buildings,29/09/2014,5200069032,2446.76
Lancaster City Council,30UH,Lancashire County Council,Environmental Services,Capital Payments To Contractors,10/09/2014,5200064956,2404.95
Lancaster City Council,30UH,Lancashire County Council,Environmental Services,Capital Payments To Contractors,16/09/2014,5100216354,977.00
Lancaster City Council,30UH,Lancashire County Council,Environmental Services,Capital Payments To Contractors,23/09/2014,5100197637,2295.00
Lancaster City Council,30UH,Lancashire County Council,Environmental Services,Landfill Tax,19/09/2014,5200068247,81463.20
Lancaster City Council,30UH,Lancashire County Council,Environmental Services,Services - Waste Disposal,19/09/2014,5200068247,24316.77
Lancaster City Council,30UH,Lancashire Fire Protection Ltd,Environmental Services,Capital Payments To Contractors,17/09/2014,11833,820.00
Lancaster City Council,30UH,Lancaster & District YMCA,Community Engagement,Community Development,04/09/2014,30000179,7357.50
Lancaster City Council,30UH,Lancaster County Court,Governance,Legal & Court Costs,17/09/2014,lpc000150,1030.00
Lancaster City Council,30UH,Lancaster University,Property Services,Telephones,03/09/2014,8655378,822.18
Lancaster City Council,30UH,Landmark Products Ltd,Regeneration and Planning,Capital Payments To Contractors,11/09/2014,F.2510.536p,3465.00
Lancaster City Council,30UH,Lathams,Environmental Services,Materials For Resale,16/09/2014,25465,1671.21
Lancaster City Council,30UH,Les Mills Fitness UK Ltd,Community Engagement,Miscellaneous Licences,16/09/2014,LMI10004601,873.60
Lancaster City Council,30UH,Les Mills Fitness UK Ltd,Community Engagement,Miscellaneous Licences,16/09/2014,LMI10004601,873.60
Lancaster City Council,30UH,Les Mills Fitness UK Ltd,Community Engagement,Miscellaneous Licences,16/09/2014,LMI10004601,1344.15
Lancaster City Council,30UH,Les Mills Fitness UK Ltd,Community Engagement,Miscellaneous Licences,16/09/2014,RTN000002943,-582.40
Lancaster City Council,30UH,Les Mills Fitness UK Ltd,Community Engagement,Miscellaneous Licences,16/09/2014,RTN000002943,-582.40
Lancaster City Council,30UH,Lesar UK Ltd,Property Services,Software Purchase\Licences,25/09/2014,24985,577.00
Lancaster City Council,30UH,Let`s Play (Everywhere) Ltd,Environmental Services,Materials - General,15/09/2014,LPE/SS2136,600.00
Lancaster City Council,30UH,Let`s Play (Everywhere) Ltd,Environmental Services,Materials - General,15/09/2014,LPE/SS2136,3015.80
Lancaster City Council,30UH,Let`s Play (Everywhere) Ltd,Environmental Services,Materials - General,30/09/2014,LPE/SS2198,900.00
Lancaster City Council,30UH,Let`s Play (Everywhere) Ltd,Environmental Services,Materials - General,30/09/2014,LPE/SS2198,4341.80
Lancaster City Council,30UH,Lingwood Security Management Limited,Property Services,Security Services,10/09/2014,19330,560.00
Lancaster City Council,30UH,Lingwood Security Management Limited,Property Services,Security Services,24/09/2014,19124,542.50
Lancaster City Council,30UH,Litfest,Regeneration and Planning,Grants,10/09/2014,354,2375.00
Lancaster City Council,30UH,London Pupae Supplies,Environmental Services,Materials - General,18/09/2014,25517,690.60
Lancaster City Council,30UH,M & D Forsyth Electrical Services Ltd,Environmental Services,Void Maintenance - External,15/09/2014,503,794.00
Lancaster City Council,30UH,M & D Forsyth Electrical Services Ltd,Environmental Services,Void Maintenance - External,23/09/2014,523,2000.00
Lancaster City Council,30UH,M & D Forsyth Electrical Services Ltd,Environmental Services,Void Maintenance - External,24/09/2014,518,708.00
Lancaster City Council,30UH,M & D Forsyth Electrical Services Ltd,Environmental Services,Void Maintenance - External,24/09/2014,519,1300.00
Lancaster City Council,30UH,M & D Forsyth Electrical Services Ltd,Environmental Services,Void Maintenance - External,24/09/2014,520,541.00
Lancaster City Council,30UH,M & D Forsyth Electrical Services Ltd,Environmental Services,Void Maintenance - External,24/09/2014,521,542.00
Lancaster City Council,30UH,M & D Forsyth Electrical Services Ltd,Environmental Services,Void Maintenance - External,24/09/2014,521,700.00
Lancaster City Council,30UH,M D Hanafin & Sons Ltd,Environmental Services,Contracted Services,02/09/2014,113981,845.31
Lancaster City Council,30UH,M D Hanafin & Sons Ltd,Environmental Services,Contracted Services,02/09/2014,113988,527.24
Lancaster City Council,30UH,M D Hanafin & Sons Ltd,Environmental Services,Contracted Services,02/09/2014,114002,2474.80
Lancaster City Council,30UH,M D Hanafin & Sons Ltd,Environmental Services,Contracted Services,02/09/2014,114010,1089.70
Lancaster City Council,30UH,M D Hanafin & Sons Ltd,Environmental Services,Contracted Services,15/09/2014,113982,610.10
Lancaster City Council,30UH,M D Hanafin & Sons Ltd,Environmental Services,Contracted Services,15/09/2014,113983,1168.71
Lancaster City Council,30UH,M D Hanafin & Sons Ltd,Environmental Services,Contracted Services,15/09/2014,114632,622.48
Lancaster City Council,30UH,M D Hanafin & Sons Ltd,Environmental Services,Contracted Services,15/09/2014,114633,586.83
Lancaster City Council,30UH,M D Hanafin & Sons Ltd,Environmental Services,Contracted Services,15/09/2014,114635,1561.65
Lancaster City Council,30UH,M D Hanafin & Sons Ltd,Environmental Services,Contracted Services,15/09/2014,114643,995.90
Lancaster City Council,30UH,M D Hanafin & Sons Ltd,Environmental Services,Contracted Services,15/09/2014,114649,624.70
Lancaster City Council,30UH,M D Hanafin & Sons Ltd,Environmental Services,Contracted Services,15/09/2014,114650,790.85
Lancaster City Council,30UH,M D Hanafin & Sons Ltd,Environmental Services,Contracted Services,15/09/2014,114651,859.50
Lancaster City Council,30UH,M D Hanafin & Sons Ltd,Environmental Services,Contracted Services,15/09/2014,114652,1205.05
Lancaster City Council,30UH,M D Hanafin & Sons Ltd,Environmental Services,Contracted Services,15/09/2014,114655,731.46
Lancaster City Council,30UH,M D Hanafin & Sons Ltd,Environmental Services,Contracted Services,15/09/2014,114661,663.66
Lancaster City Council,30UH,M D Hanafin & Sons Ltd,Environmental Services,Contracted Services,15/09/2014,146640,512.00
Lancaster City Council,30UH,Magnet Limited,Environmental Services,Materials - General,08/09/2014,158/174138,710.76
Lancaster City Council,30UH,Magnet Limited,Environmental Services,Other Construction Costs,03/09/2014,158/173617,543.16
Lancaster City Council,30UH,Magnet Limited,Environmental Services,Other Construction Costs,03/09/2014,158/173618,531.14
Lancaster City Council,30UH,Magnet Limited,Environmental Services,Other Construction Costs,03/09/2014,158/173935,760.67
Lancaster City Council,30UH,Magnet Limited,Environmental Services,Other Construction Costs,03/09/2014,158/173940,651.45
Lancaster City Council,30UH,Magnet Limited,Environmental Services,Other Construction Costs,03/09/2014,158/174206,693.08
Lancaster City Council,30UH,Magnet Limited,Environmental Services,Other Construction Costs,03/09/2014,158/174260,667.95
Lancaster City Council,30UH,Magnet Limited,Environmental Services,Other Construction Costs,08/09/2014,158/173689,633.86
Lancaster City Council,30UH,Magnet Limited,Environmental Services,Other Construction Costs,08/09/2014,158/174428,643.41
Lancaster City Council,30UH,Magnet Limited,Environmental Services,Other Construction Costs,15/09/2014,158/174692,607.66
Lancaster City Council,30UH,Magnet Limited,Environmental Services,Other Construction Costs,15/09/2014,158/174693,630.23
Lancaster City Council,30UH,MAINS,Environmental Services,Office Equipment,19/09/2014,25550,959.89
Lancaster City Council,30UH,Mason Gillibrand Architects,Environmental Services,Capital Payments To Contractors,16/09/2014,51789,1752.60
Lancaster City Council,30UH,Mason Gillibrand Architects,Environmental Services,Capital Payments To Contractors,16/09/2014,51890,4028.23
Lancaster City Council,30UH,Mason Gillibrand Architects,Environmental Services,Capital Payments To Contractors,16/09/2014,51905,643.63
Lancaster City Council,30UH,Max Associates (Holdings) Limited,Community Engagement,Feasibility Studies,03/09/2014,75,3500.00
Lancaster City Council,30UH,Maxigiene Environmental Services Limited,Environmental Services,Contract Maintenance,22/09/2014,1895847,900.00
Lancaster City Council,30UH,Mercer & Sons Limited,Environmental Services,White Lund Stock,03/09/2014,742573,768.00
Lancaster City Council,30UH,Michael Testler Property Services Ltd,Regeneration and Planning,Rent,01/09/2014,5646,6200.00
Lancaster City Council,30UH,Michael Wilson Joinery and Flat Roofing Specialist,Environmental Services,R & M - Buildings,26/09/2014,031/14,690.00
Lancaster City Council,30UH,Michael Wilson Joinery and Flat Roofing Specialist,Environmental Services,R & M - Buildings,26/09/2014,031/14,660.00
Lancaster City Council,30UH,Mick Liver Ltd,Environmental Services,Materials For Resale,08/09/2014,42,666.00
Lancaster City Council,30UH,Middleton`s-Electrical Contractors,Community Engagement,Other Fixed Plant,22/09/2014,322,639.65
Lancaster City Council,30UH,Middleton`s-Electrical Contractors,Community Engagement,R & M - Buildings,09/09/2014,321,556.43
Lancaster City Council,30UH,Mobil8 Solutions Limited,Information Services,Infrastructure - Update & Maintenance,01/09/2014,14260,1312.50
Lancaster City Council,30UH,Mobil8 Solutions Limited,Information Services,Infrastructure - Update & Maintenance,01/09/2014,14260,1950.00
Lancaster City Council,30UH,Mobil8 Solutions Limited,Information Services,Infrastructure - Update & Maintenance,01/09/2014,14260,1750.00
Lancaster City Council,30UH,Mobil8 Solutions Limited,Information Services,Infrastructure - Update & Maintenance,01/09/2014,14260,1300.00
Lancaster City Council,30UH,Mobil8 Solutions Limited,Information Services,Infrastructure - Update & Maintenance,01/09/2014,14260,6500.00
Lancaster City Council,30UH,More Music in Morecambe Ltd,Regeneration and Planning,Grants,25/09/2014,2650,2800.00
Lancaster City Council,30UH,Morecambe Press Ltd,Council Housing (HRA),Printing & Stationery,11/09/2014,6293,2280.00
Lancaster City Council,30UH,Morgan Hunt Public Sector Ltd,Revenue Services,Services - General,04/09/2014,749666,720.00
Lancaster City Council,30UH,Morgan Hunt Public Sector Ltd,Revenue Services,Services - General,04/09/2014,751083,840.00
Lancaster City Council,30UH,Morgan Hunt Public Sector Ltd,Revenue Services,Services - General,04/09/2014,751084,891.25
Lancaster City Council,30UH,Morgan Hunt Public Sector Ltd,Revenue Services,Services - General,10/09/2014,752655,720.00
Lancaster City Council,30UH,Morgan Hunt Public Sector Ltd,Revenue Services,Services - General,10/09/2014,752656,661.25
Lancaster City Council,30UH,Morgan Hunt Public Sector Ltd,Revenue Services,Services - General,18/09/2014,754402,862.50
Lancaster City Council,30UH,Morgan Hunt Public Sector Ltd,Revenue Services,Services - General,18/09/2014,754403,900.00
Lancaster City Council,30UH,Morgan Hunt Public Sector Ltd,Revenue Services,Services - General,18/09/2014,755961,720.00
Lancaster City Council,30UH,Morgan Hunt Public Sector Ltd,Revenue Services,Services - General,18/09/2014,755962,908.50
Lancaster City Council,30UH,Morgan Lambert Limited,Environmental Services,Contracted Services,19/09/2014,19616,900.00
Lancaster City Council,30UH,Mr Barry Berlin (St Philips Barristers),Governance,Service Training Budget,24/09/2014,578081,600.00
Lancaster City Council,30UH,Mrs Doreen Challenger,Council Housing (HRA),Rent Refunds - Current Tenants,30/09/2014,hpr000673,687.82
Lancaster City Council,30UH,Mrs Stephanie Carter,Governance,Salaries - Basic,03/09/2014,August14,1000.00
Lancaster City Council,30UH,Myerscough College,Environmental Services,Service Training Budget,18/09/2014,036395,629.00
Lancaster City Council,30UH,New Progress Housing Association Limited,Council Housing (HRA),Services - General,18/09/2014,NSCM340,2945.00
Lancaster City Council,30UH,Newclear Drains & Newlook Cleaning Services,Environmental Services,Contracted Services,15/09/2014,9282,940.00
Lancaster City Council,30UH,Newclear Drains & Newlook Cleaning Services,Environmental Services,Contracted Services,24/09/2014,9296,505.00
Lancaster City Council,30UH,NHS Lanarkshire,Governance,Services - Medical Fees,02/09/2014,L0031088,1845.60
Lancaster City Council,30UH,NHS Lanarkshire,Governance,Services - Medical Fees,11/09/2014,2467,2467.00
Lancaster City Council,30UH,Nomix Enviro Ltd,Environmental Services,Materials - General,18/09/2014,SI/02439197,786.00
Lancaster City Council,30UH,Northern Municipal Spares Ltd t/a ProBrush,Environmental Services,White Lund Stock,08/09/2014,11201,1188.09
Lancaster City Council,30UH,Northern Municipal Spares Ltd t/a ProBrush,Environmental Services,White Lund Stock,24/09/2014,11242,880.57
Lancaster City Council,30UH,npower,Community Engagement,Electricity,09/09/2014,LGUQGF6C,5957.39
Lancaster City Council,30UH,npower,Council Housing (HRA),Electricity,25/09/2014,LGUQNK4X,1685.83
Lancaster City Council,30UH,npower,Council Housing (HRA),Electricity,25/09/2014,LGUQNK4X,1223.81
Lancaster City Council,30UH,npower,Council Housing (HRA),Electricity,25/09/2014,LGUQNK4X,901.24
Lancaster City Council,30UH,npower,Environmental Services,Electricity,04/09/2014,LGUP498S,1847.38
Lancaster City Council,30UH,npower,Environmental Services,Electricity,09/09/2014,LGUP5BCC,954.35
Lancaster City Council,30UH,npower,Environmental Services,Electricity,09/09/2014,LGUQFHJJ,600.30
Lancaster City Council,30UH,npower,Environmental Services,Electricity,10/09/2014,LGUQGF6H,1910.33
Lancaster City Council,30UH,npower,Environmental Services,Electricity,25/09/2014,LGUQNYCP,761.89
Lancaster City Council,30UH,npower,Property Services,Electricity,02/09/2014,LGUQFHJQ,786.43
Lancaster City Council,30UH,npower,Property Services,Electricity,05/09/2014,LGUQGF6F,2436.78
Lancaster City Council,30UH,npower,Property Services,Electricity,08/09/2014,LGUQGF6G,1335.68
Lancaster City Council,30UH,npower,Property Services,Electricity,09/09/2014,LGUP6S54,2699.38
Lancaster City Council,30UH,npower,Property Services,Electricity,10/09/2014,LGUQGF6D,646.44
Lancaster City Council,30UH,npower,Property Services,Electricity,10/09/2014,LGUQGF6J,2689.59
Lancaster City Council,30UH,npower,Property Services,Electricity,11/09/2014,LGUQFHGL,1598.23
Lancaster City Council,30UH,npower,Property Services,Electricity,24/09/2014,LGUQNYCS,1413.64
Lancaster City Council,30UH,npower,Property Services,Electricity,25/09/2014,LGUQNYCN,1598.23
Lancaster City Council,30UH,Oakmere Homes NW Ltd,Regeneration and Planning,Planning Legal Costs,25/09/2014,156,30985.00
Lancaster City Council,30UH,OC Cleaning Limited,Environmental Services,Window Cleaning,11/09/2014,3407,574.40
Lancaster City Council,30UH,OC Cleaning Limited,Environmental Services,Window Cleaning,11/09/2014,3577,579.50
Lancaster City Council,30UH,OC Cleaning Limited,Environmental Services,Window Cleaning,19/09/2014,3912,579.50
Lancaster City Council,30UH,Orbis Protect Ltd,Environmental Services,Void Maintenance - External,16/09/2014,R0508079,720.66
Lancaster City Council,30UH,Orbis Protect Ltd,Regeneration and Planning,Security Services,04/09/2014,R0507400,1450.62
Lancaster City Council,30UH,Orbis Protect Ltd,Regeneration and Planning,Security Services,19/09/2014,R0508499M,1294.62
Lancaster City Council,30UH,Orion Security Print Ltd,Environmental Services,Printing & Stationery,10/09/2014,24819,918.98
Lancaster City Council,30UH,Otis Ltd.,Environmental Services,Contract Maintenance,09/09/2014,01135075,1062.12
Lancaster City Council,30UH,P & L Barton Ltd,Regeneration and Planning,R & M - Sea & River / Promenade,18/09/2014,5947,652.00
Lancaster City Council,30UH,P.McGaffigan & Sons Ltd,Property Services,R & M - Buildings,24/09/2014,15541A,742.00
Lancaster City Council,30UH,Paint & Decorative Supplies Ltd,Environmental Services,Materials - General,17/09/2014,24086,1117.92
Lancaster City Council,30UH,Parkinson & Hartley Ltd,Environmental Services,Capital Payments To Contractors,24/09/2014,Application1945626/1,56950.14
Lancaster City Council,30UH,PayPoint Network Ltd,Environmental Services,Void Maintenance - External,16/09/2014,PNL-1000128810,950.00
Lancaster City Council,30UH,PDM Industries Ltd T/A Pete Marquis Contractors,Environmental Services,R & M - Buildings,23/09/2014,8612,9030.06
Lancaster City Council,30UH,Pentland Plants,Environmental Services,Materials - General,09/09/2014,57684,4967.76
Lancaster City Council,30UH,Peter Savage Limited,Environmental Services,White Lund Stock,24/09/2014,OP/I159479,1512.00
Lancaster City Council,30UH,Physical Company,Health & Housing,Equipment and Tools - General,08/09/2014,bpc001700,548.40
Lancaster City Council,30UH,Piccadilly Garden Ltd.,Environmental Services,Contracted Services,09/09/2014,2170,867.94
Lancaster City Council,30UH,Place Marque Limited,Regeneration and Planning,Capital Payments To Contractors,19/09/2014,14.38,29844.00
Lancaster City Council,30UH,Plastecowood Limited,Environmental Services,R & M - General,10/09/2014,20023,995.00
Lancaster City Council,30UH,Plumbase Ltd,Environmental Services,White Lund Stock,23/09/2014,0177/01107690,1905.30
Lancaster City Council,30UH,Plumbase Ltd,Environmental Services,White Lund Stock,23/09/2014,0177/01108384,3939.60
Lancaster City Council,30UH,Plumbase Ltd,Environmental Services,White Lund Stock,29/09/2014,0177/01106893,1686.68
Lancaster City Council,30UH,Power Trading Limited T/A Think Bathrooms,Health & Housing,Capital Grants,30/09/2014,spr000550,1590.74
Lancaster City Council,30UH,PPG Architectural Coatings UK Limited,Environmental Services,White Lund Stock,29/09/2014,4466811508,784.63
Lancaster City Council,30UH,PR Chauffeuring Services,Democratic Services,Central Transport - General,17/09/2014,PR 31/08/14,910.00
Lancaster City Council,30UH,Premierline Direct Ltd,Financial Services,Debtors (Powersol) refunds,25/09/2014,cdi218229,959.76
Lancaster City Council,30UH,Preston City Council,Financial Services,Management Fees,15/09/2014,M38,172500.00
Lancaster City Council,30UH,Preston City Council,Regeneration and Planning,Services - General,05/09/2014,01698756,646.81
Lancaster City Council,30UH,Preston City Council,Regeneration and Planning,Services - General,05/09/2014,CN004307,-805.52
Lancaster City Council,30UH,Preston City Council,Regeneration and Planning,Services - General,05/09/2014,CN004307,-955.98
Lancaster City Council,30UH,Print Image Facilities LLP,Democratic Services,Postages,17/09/2014,c301061,2128.95
Lancaster City Council,30UH,Profile Security Services Ltd,Environmental Services,Security Services,23/09/2014,107949,5979.40
Lancaster City Council,30UH,Purchase Power,Property Services,Postages,08/09/2014,BB896668,1013.00
Lancaster City Council,30UH,Quartzelec Ltd,Environmental Services,Capital Payments To Contractors,15/09/2014,7075116,2267.20
Lancaster City Council,30UH,Queensbury Shelters Ltd,Environmental Services,R & M - Buildings,05/09/2014,57331,972.67
Lancaster City Council,30UH,R Briggs & Son (Lancaster) Ltd,Environmental Services,Electrical Inspections,03/09/2014,17143,16362.22
Lancaster City Council,30UH,R Briggs & Son (Lancaster) Ltd,Environmental Services,Electrical Inspections,15/09/2014,17161,3746.52
Lancaster City Council,30UH,R G Parkins & Partners Ltd,Environmental Services,Contracted Services,04/09/2014,L30026/02,770.56
Lancaster City Council,30UH,R G Parkins & Partners Ltd,Environmental Services,Contracted Services,04/09/2014,L31193/02,700.00
Lancaster City Council,30UH,Ray Adams Electrical Services,Environmental Services,Contract Maintenance,08/09/2014,515,1000.00
Lancaster City Council,30UH,Rexel UK Ltd,Environmental Services,Materials - General,30/09/2014,131727970,741.26
Lancaster City Council,30UH,Ricoh UK Ltd,Information Services,Printing\Copying Equipment,02/09/2014,87982150,8755.11
Lancaster City Council,30UH,Rogerson HomeServe Plus Limited,Environmental Services,Capital Payments To Contractors,03/09/2014,inv1617,2902.43
Lancaster City Council,30UH,Royal Mail Group Ltd,Democratic Services,Postages,09/09/2014,1108978723,1103.03
Lancaster City Council,30UH,RSA Environmental Health Ltd,Health & Housing,Services - Consultants,03/09/2014,112958,539.90
Lancaster City Council,30UH,Sandra Dacre,Health & Housing,Homelessness Priority Need Order,15/09/2014,INV/RMUK/03/08/004,4400.00
Lancaster City Council,30UH,SG Equipment Finance Ltd,Financial Services,Tpt & Plant Operating Leases,18/09/2014,L/011/14/20980,3000.00
Lancaster City Council,30UH,Shorrocks Building Works Limited,Environmental Services,Capital Payments To Contractors,16/09/2014,3251,774.00
Lancaster City Council,30UH,Shorrocks Building Works Limited,Environmental Services,Contracted Services,11/09/2014,3248,797.00
Lancaster City Council,30UH,Shorrocks Building Works Limited,Environmental Services,Contracted Services,17/09/2014,32521,4766.00
Lancaster City Council,30UH,Signs Express,Regeneration and Planning,Printing & Stationery,04/09/2014,25297,502.46
Lancaster City Council,30UH,Signs Express,Regeneration and Planning,Printing & Stationery,04/09/2014,25302,509.37
Lancaster City Council,30UH,Signs Express (Lancaster),Community Engagement,Printing & Stationery,22/09/2014,15966,538.89
Lancaster City Council,30UH,Simon Drake Plumbing & Heating Limited,Health & Housing,Capital Grants,18/09/2014,Inv. 2232,2500.00
Lancaster City Council,30UH,Solotrim Ltd.,Property Services,Rent,10/09/2014,00002128,7325.00
Lancaster City Council,30UH,Sparks Careers Limited,Governance,Employee Related Advertising,09/09/2014,ME10802,1105.00
Lancaster City Council,30UH,Stagecoach,Regeneration and Planning,Stagecoach Tickets,30/09/2014,25917,698.90
Lancaster City Council,30UH,Standard Fuel Oils Ltd,Environmental Services,White Lund Stock,08/09/2014,15209,2936.90
Lancaster City Council,30UH,Standard Fuel Oils Ltd,Environmental Services,White Lund Stock,23/09/2014,15328,23302.40
Lancaster City Council,30UH,Standard Fuel Oils Ltd,Environmental Services,White Lund Stock,23/09/2014,15601,23257.26
Lancaster City Council,30UH,Stonewell Property Company Ltd,Property Services,Rent,10/09/2014,SI10228,17500.00
Lancaster City Council,30UH,Supa Scaffold Ltd,Environmental Services,Materials - General,05/09/2014,1309,2000.00
Lancaster City Council,30UH,Supa Scaffold Ltd,Environmental Services,Rota Painting,23/09/2014,1339,5000.00
Lancaster City Council,30UH,TCL Developments Limited,Environmental Services,Capital Payments To Contractors,03/09/2014,726,1021.00
Lancaster City Council,30UH,TCL Developments Limited,Environmental Services,Capital Payments To Contractors,24/09/2014,733,883.50
Lancaster City Council,30UH,The Industrial Work Solutions UK Limited,Environmental Services,Contracted Services,09/09/2014,23955,661.94
Lancaster City Council,30UH,The Industrial Work Solutions UK Limited,Environmental Services,Contracted Services,16/09/2014,23988,598.88
Lancaster City Council,30UH,The Industrial Work Solutions UK Limited,Environmental Services,Contracted Services,16/09/2014,24019,527.96
Lancaster City Council,30UH,The Industrial Work Solutions UK Limited,Environmental Services,Contracted Services,23/09/2014,24108,1138.66
Lancaster City Council,30UH,The James Mercer Group Ltd,Community Engagement,Other Fixed Plant,22/09/2014,SM92752,858.00
Lancaster City Council,30UH,The Networking People (North West) Limited,Information Services,Services - Consultants,11/09/2014,INV001905,2750.00
Lancaster City Council,30UH,The Technology Forge Limited,Property Services,Services - General,30/09/2014,5447,2583.00
Lancaster City Council,30UH,The Travellers Choice,Community Engagement,Sundry Expenses,03/09/2014,70118,700.00
Lancaster City Council,30UH,Thomas Graham & Sons (Iron & Steel) Ltd,Environmental Services,Equipment and Tools - General,02/09/2014,MR159766,16635.48
Lancaster City Council,30UH,Thomas Graham & Sons (Iron & Steel) Ltd,Environmental Services,Purchase Of Equipment,23/09/2014,MR166522,1753.04
Lancaster City Council,30UH,Thomas Graham & Sons (Iron & Steel) Ltd,Environmental Services,Tpt & Plant - Casual Hire,23/09/2014,MR166525,5118.00
Lancaster City Council,30UH,T-Mobile (UK) Ltd.,Information Services,Mobile Telephones,25/09/2014,V01010573800,1494.08
Lancaster City Council,30UH,Tony Rodgers,Health & Housing,Capital Grants,30/09/2014,spr000545,7920.00
Lancaster City Council,30UH,Tunstall Healthcare(UK)Ltd,Council Housing (HRA),Equipment Funded by Reserves,11/09/2014,3IN/10247552,3564.00
Lancaster City Council,30UH,Tyrone Lewis General Building Contractors,Environmental Services,Capital Payments To Contractors,18/09/2014,1-7 WASTWATER,520.00
Lancaster City Council,30UH,Tyrone Lewis General Building Contractors,Environmental Services,Capital Payments To Contractors,30/09/2014,4 Artlebeck,4477.00
Lancaster City Council,30UH,UK Roofing Co,Environmental Services,Contracted Services,15/09/2014,3282,1800.00
Lancaster City Council,30UH,UK Roofing Co,Regeneration and Planning,R & M - Buildings,01/09/2014,3279,14515.00
Lancaster City Council,30UH,United Utilities,Environmental Services,Water Services,18/09/2014,25522,2140.09
Lancaster City Council,30UH,United Utilities,Environmental Services,Water Services,11/09/2014,25419,13215.83
Lancaster City Council,30UH,United Utilities Water Plc,Property Services,Water Services,02/09/2014,4030814116,736.68
Lancaster City Council,30UH,United Utilities Water Plc,Property Services,Water Services,05/09/2014,4195368975,1541.03
Lancaster City Council,30UH,United Utilities Water Plc,Property Services,Water Services,23/09/2014,4085689636,1352.58
Lancaster City Council,30UH,United Utilities Water Plc,Community Engagement,Water Services,26/09/2014,4077771912,9646.31
Lancaster City Council,30UH,United Utilities Water Plc,Council Housing (HRA),Water Services,25/09/2014,4085689841,1305.02
Lancaster City Council,30UH,United Utilities Water Plc,Environmental Services,Water Services,04/09/2014,4082082502,1750.89
Lancaster City Council,30UH,United Utilities Water Plc,Environmental Services,Water Services,04/09/2014,4085689794,1477.51
Lancaster City Council,30UH,United Utilities Water Plc,Environmental Services,Water Services,18/09/2014,4025466182,1541.03
Lancaster City Council,30UH,Valley,Health & Housing,Equipment and Tools - General,12/09/2014,spc000504,699.50
Lancaster City Council,30UH,Valley View Pets Hotel,Health & Housing,Services - Vets,22/09/2014,16/14,2695.00
Lancaster City Council,30UH,VPS (UK) Limited,Environmental Services,Void Maintenance - External,23/09/2014,7249309,16800.00
Lancaster City Council,30UH,West Coast Glass (Morecambe) Ltd,Environmental Services,Materials - General,17/09/2014,21524F,652.50
Lancaster City Council,30UH,West Coast Glass (Morecambe) Ltd,Environmental Services,Materials - General,17/09/2014,21524K,652.50
Lancaster City Council,30UH,Whinfield Study Trust,Community Engagement,Gas,24/09/2014,WHO137,746.60
Lancaster City Council,30UH,Whistl North Limited,Property Services,Postages,05/09/2014,IN1BUS14011947,1217.84
Lancaster City Council,30UH,Whistl North Limited,Property Services,Postages,08/09/2014,IN18US14011611,2694.85
Lancaster City Council,30UH,Whistl North Limited,Property Services,Postages,16/09/2014,IN18US14012345,1135.34
Lancaster City Council,30UH,William Pye Ltd,Regeneration and Planning,Capital Payments To Contractors,11/09/2014,00073107141,72000.00
Lancaster City Council,30UH,Winning Building Services,Environmental Services,R & M - Buildings,02/09/2014,00192,14465.00
Lancaster City Council,30UH,Zoeller Waste Systems Limited,Environmental Services,Repair & Mtce Of Vehicles,23/09/2014,SVI28233,979.95
